Workbook

Sheet Лист1
A1: Школа | C1: МБОУ СОШ №11 | F1: Утвердил: | G1: должность | H1: директор ООО"ФУДСОЦСЕРВИС"
A2: Типовое примерное меню приготавливаемых блюд | G2: фамилия | H2: Харламова Э.Р.
A3: Возрастная категория | E3: 7-11 лет | G3: дата | H3: 2 | I3: 9 | J3: 2024
H4: день | I4: месяц | J4: год
A5: Неделя | B5: День недели | C5: Прием пищи | D5: Раздел меню | E5: Блюда | F5: Вес блюда, г | G5: Белки | H5: Жиры | I5: Углеводы | J5: Калорийность | K5: № рецептуры | L5: Цена
A6: 1 | B6: 1 | C6: Завтрак | D6: гор.блюдо | E6: Котлеты из мяса птиц | F6: 90 | G6: 10 | H6: 13 | I6: 13 | J6: 198 | K6: ТТК | L6: 66.76
E7: Макаронные изделия отварные с маслом сливочным | F7: 150.5 | G7: 6 | H7: 4 | I7: 32 | J7: 189 | K7: 203 | L7: 66.76
D8: гор.напиток | E8: Компот из сухофруктов (75С) | F8: 200 | G8: 1 | H8: 0 | I8: 22 | J8: 93 | K8: 349 | L8: 66.76
D9: хлеб | E9: Хлеб ржаной | F9: 30 | G9: 2 | H9: 0 | I9: 12 | J9: 59 | K9: 6 | L9: 66.76
D10: фрукты | E10: Салат из моркови с яблоками | F10: 60 | G10: 1 | H10: 3 | I10: 5 | J10: 51 | K10: ТТК | L10: 66.76
D13: итого | F13: 535 | G13: =SUM(G6:G12) -> 20 | H13: 20 | I13: 84 | J13: 590 | L13: 66.76
A14: =A6 -> 1 | B14: =B6 -> 1 | C14: Завтрак 2 | D14: фрукты
D17: итого
A18: =A6 -> 1 | B18: =B6 -> 1 | C18: Обед | D18: закуска
D19: 1 блюдо
D20: 2 блюдо
D21: гарнир
D22: напиток
D23: хлеб бел.
D24: хлеб черн.
D27: итого
A28: =A6 -> 1 | B28: =B6 -> 1 | C28: Полдник | D28: булочное
D29: напиток
D32: итого
A33: =A6 -> 1 | B33: =B6 -> 1 | C33: Ужин | D33: гор.блюдо
D34: гарнир
D35: напиток
D36: хлеб
D39: итого
A40: =A6 -> 1 | B40: =B6 -> 1 | C40: Ужин 2 | D40: кисломол.
D41: булочное
D42: напиток
D43: фрукты
D46: итого
A47: =A6 -> 1 | B47: =B6 -> 1 | C47: Итого за день: | F47: =F13+F17+F27+F32+F39+F46 -> 535 | G47: =G13+G17+G27+G32+G39+G46 -> 20 | H47: 20 | I47: 84 | J47: 590 | L47: 66.76
A48: 1 | B48: 2 | C48: Завтрак | D48: гор.блюдо | E48: Сырники из творога с кашей молочной "Дружба" с маслом сливочным | F48: 60,150,5 | G48: 14 | H48: 15 | I48: 32 | J48: 331 | K48: ТТК | L48: 66.76
D50: гор.напиток | E50: Чай с сахаром | F50: 190.10 | G50: 0 | H50: 0 | I50: 10 | J50: 40 | K50: 376 | L50: 66.76
D51: хлеб | E51: Хлеб ржаной | F51: 30 | G51: 2 | H51: 0 | I51: 2 | J51: 59 | K51: 6 | L51: 66.76
D52: фрукты | E52: Плоды и ягоды свежие (яблоки) | F52: 100 | G52: 0 | H52: 0 | I52: 10 | J52: 47 | K52: 9 | L52: 66.76
D55: итого | F55: 545 | G55: =SUM(G48:G54) -> 16 | H55: =SUM(H48:H54) -> 15 | I55: =SUM(I48:I54) -> 54 | J55: =SUM(J48:J54) -> 477 | L55: 66.76
A56: =A48 -> 1 | B56: =B48 -> 2 | C56: Завтрак 2 | D56: фрукты
D59: итого
A60: =A48 -> 1 | B60: =B48 -> 2 | C60: Обед | D60: закуска
D61: 1 блюдо
D62: 2 блюдо
D63: гарнир
D64: напиток
D65: хлеб бел.
D66: хлеб черн.
D69: итого
A70: =A48 -> 1 | B70: =B48 -> 2 | C70: Полдник | D70: булочное
D71: напиток
D74: итого
A75: =A48 -> 1 | B75: =B48 -> 2 | C75: Ужин | D75: гор.блюдо
D76: гарнир
D77: напиток
D78: хлеб
D81: итого
A82: =A48 -> 1 | B82: =B48 -> 2 | C82: Ужин 2 | D82: кисломол.
D83: булочное
D84: напиток
D85: фрукты
D88: итого
A89: =A48 -> 1 | B89: =B48 -> 2 | C89: Итого за день: | F89: =F55+F59+F69+F74+F81+F88 -> 545 | G89: =G55+G59+G69+G74+G81+G88 -> 16 | H89: =H55+H59+H69+H74+H81+H88 -> 15 | I89: =I55+I59+I69+I74+I81+I88 -> 54 | J89: =J55+J59+J69+J74+J81+J88 -> 477 | L89: 66.76
A90: 1 | B90: 3 | C90: Завтрак | D90: гор.блюдо | E90: Гуляш из говядины | F90: 50.50 | G90: 10 | H90: 15 | I90: 10 | J90: 221 | K90: 260 | L90: 66.76
D91: гор.напиток | E91: Каша гречневая рассыпчатая | F91: 150 | G91: 4 | H91: 2 | I91: 40 | J91: 214 | K91: 171 | L91: 66.76
D92: хлеб | E92: Чай с сахаром, с лимоном | F92: 185,10,5 | G92: 0 | H92: 0 | I92: 10 | J92: 41 | K92: 377 | L92: 66.76
D93: фрукты | E93: Хлеб ржаной | F93: 50 | G93: 3 | H93: 1 | I93: 20 | J93: 99 | K93: 6 | L93: 66.76
E94: Сыр порционно | F94: 10 | G94: 3 | H94: 3 | I94: 0 | J94: 34 | K94: 15 | L94: 66.76
D96: итого | F96: 510 | G96: =SUM(G90:G95) -> 20 | H96: =SUM(H90:H95) -> 21 | I96: =SUM(I90:I95) -> 80 | J96: =SUM(J90:J95) -> 609 | L96: 66.76
A97: =A90 -> 1 | B97: =B90 -> 3 | C97: Завтрак 2 | D97: фрукты
D100: итого
A101: =A90 -> 1 | B101: =B90 -> 3 | C101: Обед | D101: закуска
D102: 1 блюдо
D103: 2 блюдо
D104: гарнир
D105: напиток
D106: хлеб бел.
D107: хлеб черн.
D110: итого
A111: =A90 -> 1 | B111: =B90 -> 3 | C111: Полдник | D111: булочное
D112: напиток
D115: итого
A116: =A90 -> 1 | B116: =B90 -> 3 | C116: Ужин | D116: гор.блюдо
D117: гарнир
D118: напиток
D119: хлеб
D122: итого
A123: =A90 -> 1 | B123: =B90 -> 3 | C123: Ужин 2 | D123: кисломол.
D124: булочное
D125: напиток
D126: фрукты
D129: итого
A130: =A90 -> 1 | B130: =B90 -> 3 | C130: Итого за день: | F130: =F96+F100+F110+F115+F122+F129 -> 510 | G130: =G96+G100+G110+G115+G122+G129 -> 20 | H130: =H96+H100+H110+H115+H122+H129 -> 21 | I130: =I96+I100+I110+I115+I122+I129 -> 80 | J130: =J96+J100+J110+J115+J122+J129 -> 609 | L130: 66.76
A131: 1 | B131: 4 | C131: Завтрак | D131: гор.блюдо | E131: Котлеты из мяса птиц | F131: 90 | G131: 10 | H131: 13 | I131: 14 | J131: 198 | K131: ТТК | L131: 66.76
D132: салат | E132: Пюре кортофельное с маслом сливочным | F132: 150.3 | G132: 3 | H132: 6 | I132: 20 | J132: 150 | K132: 312 | L132: 66.76
D133: гор.напиток | E133: Чай с сахаром, с яблоком | F133: 180,10,10 | G133: 0 | H133: 0 | I133: 11 | J133: 45 | K133: 376 | L133: 66.76
D134: хлеб | E134: Хлеб ржаной | F134: 40 | G134: 3 | H134: 0 | I134: 16 | J134: 79 | K134: 6 | L134: 66.76
D135: фрукты | E135: Хлеб пшеничный | F135: 30 | G135: 2 | H135: 0 | I135: 15 | J135: 71 | K135: 6 | L135: 66.76
E136: Свекла отварная дольками | F136: 60 | G136: 1 | H136: 0 | I136: 6 | J136: 29 | K136: ТТК | L136: 66.76
D138: итого | F138: 573 | G138: =SUM(G131:G137) -> 19 | H138: =SUM(H131:H137) -> 19 | I138: =SUM(I131:I137) -> 82 | J138: =SUM(J131:J137) -> 572 | L138: 66.76
A139: =A131 -> 1 | B139: =B131 -> 4 | C139: Завтрак 2 | D139: фрукты
D142: итого
A143: =A131 -> 1 | B143: =B131 -> 4 | C143: Обед | D143: закуска
D144: 1 блюдо
D145: 2 блюдо
D146: гарнир
D147: напиток
D148: хлеб бел.
D149: хлеб черн.
D152: итого
A153: =A131 -> 1 | B153: =B131 -> 4 | C153: Полдник | D153: булочное
D154: напиток
D157: итого
A158: =A131 -> 1 | B158: =B131 -> 4 | C158: Ужин | D158: гор.блюдо
D159: гарнир
D160: напиток
D161: хлеб
D164: итого
A165: =A131 -> 1 | B165: =B131 -> 4 | C165: Ужин 2 | D165: кисломол.
D166: булочное
D167: напиток
D168: фрукты
D171: итого
A172: =A131 -> 1 | B172: =B131 -> 4 | C172: Итого за день: | F172: =F138+F142+F152+F157+F164+F171 -> 573 | G172: =G138+G142+G152+G157+G164+G171 -> 19 | H172: =H138+H142+H152+H157+H164+H171 -> 19 | I172: =I138+I142+I152+I157+I164+I171 -> 82 | J172: =J138+J142+J152+J157+J164+J171 -> 572 | L172: =L138+L142+L152+L157+L164+L171 -> 66.76
A173: 1 | B173: 5 | C173: Завтрак | D173: гор.блюдо | E173: Тефтели мясные в сметанно-томатном соусе | F173: 60.40 | G173: 7 | H173: 12 | I173: 8 | J173: 124 | K173: 279.331 | L173: 66.76
D174: гор.напиток | E174: Макаронные изделия отварные с маслом сливочным | F174: 180.5 | G174: 5 | H174: 4 | I174: 32 | J174: 176 | K174: 203 | L174: 66.76
D175: хлеб | E175: Напиток из свежих фруктов (75С) | F175: 200 | G175: 0 | H175: 0 | I175: 21 | J175: 104 | K175: ТТК | L175: 66.76
D176: фрукты | E176: Хлеб пшеничный | F176: 45 | G176: 3 | H176: 0 | I176: 22 | J176: 106 | K176: 6 | L176: 66.76
E177: Сыр порционно | F177: 15 | G177: 4 | H177: 4 | I177: 0 | J177: 52 | K177: 15 | L177: 66.76
D179: итого | F179: 545 | G179: =SUM(G173:G178) -> 19 | H179: =SUM(H173:H178) -> 20 | I179: =SUM(I173:I178) -> 83 | J179: =SUM(J173:J178) -> 562 | L179: 66.76
A180: =A173 -> 1 | B180: =B173 -> 5 | C180: Завтрак 2 | D180: фрукты
D183: итого
A184: =A173 -> 1 | B184: =B173 -> 5 | C184: Обед | D184: закуска
D185: 1 блюдо
D186: 2 блюдо
D187: гарнир
D188: напиток
D189: хлеб бел.
D190: хлеб черн.
D193: итого
A194: =A173 -> 1 | B194: =B173 -> 5 | C194: Полдник | D194: булочное
D195: напиток
D198: итого
A199: =A173 -> 1 | B199: =B173 -> 5 | C199: Ужин | D199: гор.блюдо
D200: гарнир
D201: напиток
D202: хлеб
D205: итого
A206: =A173 -> 1 | B206: =B173 -> 5 | C206: Ужин 2 | D206: кисломол.
D207: булочное
D208: напиток
D209: фрукты
D212: итого
A213: =A173 -> 1 | B213: =B173 -> 5 | C213: Итого за день: | F213: =F179+F183+F193+F198+F205+F212 -> 545 | G213: =G179+G183+G193+G198+G205+G212 -> 19 | H213: =H179+H183+H193+H198+H205+H212 -> 20 | I213: =I179+I183+I193+I198+I205+I212 -> 83 | J213: =J179+J183+J193+J198+J205+J212 -> 562 | L213: =L179+L183+L193+L198+L205+L212 -> 66.76
A214: 1 | B214: 6 | C214: Завтрак | D214: гор.блюдо | E214: Биточки рыбные | F214: 90 | G214: 13 | H214: 11 | I214: 16 | J214: 193 | K214: 234 | L214: 66.76
D215: гор.напиток | E215: Рис отварной рассыпчатый с маслом сливочным | F215: 150.3 | G215: 4 | H215: 7 | I215: 38 | J215: 223 | K215: 302 | L215: 66.76
D216: хлеб | E216: Чай с сахаром, с лимоном | F216: 185,10,5 | G216: 0 | H216: 0 | I216: 10 | J216: 41 | K216: 377 | L216: 66.76
D217: фрукты | E217: Хлеб ржаной | F217: 30 | G217: 2 | H217: 0 | I217: 12 | J217: 59 | K217: 6 | L217: 66.76
E218: Салат из свежей капусты с морковью | F218: 80 | G218: 1 | H218: 3 | I218: 5 | J218: 48 | K218: 47 | L218: 66.76
D220: итого | F220: 553 | G220: =SUM(G214:G219) -> 20 | H220: =SUM(H214:H219) -> 21 | I220: =SUM(I214:I219) -> 81 | J220: =SUM(J214:J219) -> 564 | L220: 66.76
A221: =A214 -> 1 | B221: =B214 -> 6 | C221: Завтрак 2 | D221: фрукты
D224: итого
A225: =A214 -> 1 | B225: =B214 -> 6 | C225: Обед | D225: закуска
D226: 1 блюдо
D227: 2 блюдо
D228: гарнир
D229: напиток
D230: хлеб бел.
D231: хлеб черн.
D234: итого
A235: =A214 -> 1 | B235: =B214 -> 6 | C235: Полдник | D235: булочное
D236: напиток
D239: итого
A240: =A214 -> 1 | B240: =B214 -> 6 | C240: Ужин | D240: гор.блюдо
D241: гарнир
D242: напиток
D243: хлеб
D246: итого
A247: =A214 -> 1 | B247: =B214 -> 6 | C247: Ужин 2 | D247: кисломол.
D248: булочное
D249: напиток
D250: фрукты
D253: итого
A254: =A214 -> 1 | B254: =B214 -> 6 | C254: Итого за день: | F254: =F220+F224+F234+F239+F246+F253 -> 553 | G254: =G220+G224+G234+G239+G246+G253 -> 20 | H254: =H220+H224+H234+H239+H246+H253 -> 21 | I254: =I220+I224+I234+I239+I246+I253 -> 81 | J254: =J220+J224+J234+J239+J246+J253 -> 564 | L254: =L220+L224+L234+L239+L246+L253 -> 66.76
A255: 1 | B255: 7 | C255: Завтрак | D255: гор.блюдо
D256: гор.напиток
D257: хлеб
D258: фрукты
D261: итого
A262: =A255 -> 1 | B262: =B255 -> 7 | C262: Завтрак 2 | D262: фрукты
D265: итого
A266: =A255 -> 1 | B266: =B255 -> 7 | C266: Обед | D266: закуска
D267: 1 блюдо
D268: 2 блюдо
D269: гарнир
D270: напиток
D271: хлеб бел.
D272: хлеб черн.
D275: итого
... 223 more rows
